[Event "Germany Countries-chT Youth 2022"]
[Site "Wiesbaden"]
[Date "2022.10.02"]
[Round "4"]
[White "Wunderlich, Elias"]
[Black "Rudolph, Eva"]
[Result "1/2-1/2"]
[ECO "B22"]
[WhiteElo "1815"]
[BlackElo "1911"]
[Annotator "TA"]
[PlyCount "67"]
[EventDate "2022.09.28"]
[EventType "team-tourn"]
[EventRounds "7"]
[EventCountry "GER"]
[SourceTitle "playchess.com"]
[Source "ChessBase"]
[SourceQuality "1"]
[TimeControl "40/5400+30:1800+30"]

{[%evp 11,67,18,18,23,20,22,34,37,39,30,47,40,77,55,55,37,76,55,66,33,36,8,24,0,66,16,26,14,228,120,97,8,2,2,2,2,7,4,10,0,0,0,0,0,0,0,0,0,0,0,5,0,1,0,0,0,0,-20]} 1. e4 {[%emt 0:00:03]} c5 {[%emt 0:00:05]} 2. c3 {[%emt 0:00:03]} Nf6 {[%emt 0:00:06]} 3. e5 {[%emt 0:00:05]} Nd5 {[%emt 0:00:05]} 4. Nf3 {[%emt 0:00:06]} d6 {[%emt 0:00:35]} 5. exd6 {[%emt 0:00:06]} Qxd6 {[%emt 0:09:22]} 6. d4 {[%emt 0:00:06]} cxd4 {[%emt 0:01:11]} 7. Na3 {[%emt 0:00:10][%cal Bb1a3,Ba3b5,Bb5d4][%mdl 32] B22: Sicilian: 2 c3.} e6 {[%emt 0:06:29]} 8. Nb5 {[%emt 0:00:42]} Qd8 {[%emt 0:01:51]} 9. Nbxd4 {[%emt 0:04:47] [#] White is slightly better.} ({Much worse is} 9. Qxd4 a6 10. Na3 Nc6 $15) (9. c4 {with more complications.} Nf6 10. Qxd4 Bb4+ 11. Bd2) 9... Be7 $146 {[%emt 0:02:22]} ({Predecessor:} 9... a6 10. Bd3 Nd7 11. O-O Qc7 12. Re1 Be7 13. Bc2 N7f6 14. Qd3 Bd7 15. Ne5 Rd8 {0-1 (35) Gracia Alvarez,G (2308)-Tapie Amione,P (2286) Mexico City 2021}) 10. Bd3 {[%emt 0:01:41]} O-O {[%emt 0:08:33]} 11. O-O {[%emt 0:01:19]} Nd7 {[%emt 0:04:57]} 12. Qe2 {[%emt 0:01:39][%cal Od4e6] Black must now prevent Nxe6!} (12. Re1 {is interesting.} Qc7 13. Nb5 Qb6 14. a4) 12... N7f6 {[%emt 0:00:47]} 13. Rd1 {[%emt 0:02:40]} Bd7 {[%emt 0:04:17]} 14. Bc2 {[%emt 0:23:52]} (14. c4 $5 {[%cal Rc4d5]} Nb4 15. Bb1 $16) 14... Rc8 {[%emt 0:03:16]} 15. Bg5 {[%emt 0:02:10]} Qc7 {[%emt 0:06:22]} 16. Rac1 {[%emt 0:03:56]} Rfd8 {[%emt 0:02:26]} 17. Bb3 {[%emt 0:18:00]} Qb6 {[%emt 0:07:07]} (17... h6 $11 18. Bxd5 Nxd5 19. Bxe7 Nxe7) 18. Ne5 {[%emt 0:12:59]} (18. c4 $14 Nb4 19. Nf5) 18... Be8 $11 {[%emt 0:07:31]} 19. Rc2 {[%emt 0:08:54]} Nd7 $2 {[%emt 0:10:47] [#]} (19... a5 $11 {and Black has nothing to worry.}) 20. Bxe7 {[%emt 0:02:26]} (20. Nxe6 $1 $18 {[%mdl 512]} fxe6 21. Bxe7 (21. Rxd5 exd5 22. Bxe7 Nxe5 $16) 21... Nxe7 22. Nxd7 Bxd7 23. Rxd7 $1 {[%mdl 512]}) 20... Nxe7 $16 {[%emt 0:00:12] [#]} 21. Rcd2 {[%emt 0:08:15] White has more active pieces.} (21. Nxf7 $1 $16 Bxf7 22. Nxe6) 21... Nxe5 $11 {[%emt 0:03:51] The position is equal.} 22. Qxe5 {[%emt 0:00:02][%cal Rd4e6] Threatens to win with Nxe6!} Nc6 $132 {[%emt 0:04:49][%mdl 2048] Black is not holding back} 23. Qe3 {[%emt 0:02:10] Hoping for Nxc6.} (23. Qb5 {feels hotter.} Qxb5 24. Nxb5 Rxd2 25. Rxd2 Kf8 26. Rd1) 23... Nxd4 {[%emt 0:05:08]} (23... Na5 {is more complex.} 24. g4 Nxb3 25. axb3 Rd5) 24. Rxd4 {[%emt 0:00:04]} Rxd4 {[%emt 0:01:10]} 25. Qxd4 {[%emt 0:00:02]} Qxd4 {[%emt 0:01:33]} 26. Rxd4 {[%emt 0:00:01][%mdl 4096] Endgame KRB-KRB} Kf8 {[%emt 0:00:15]} 27. f3 {[%emt 0:00:37]} Ke7 {[%emt 0:00:36]} 28. Kf2 {[%emt 0:00:05]} Bc6 {[%emt 0:00:53]} 29. Ke3 {[%emt 0:00:19]} e5 {[%emt 0:01:24]} 30. Rd2 {[%emt 0:00:06]} Be8 {[%emt 0:03:01]} 31. g3 {[%emt 0:01:23]} Bc6 {[%emt 0:00:34]} 32. Bd5 {[%emt 0:00:54]} Bxd5 {[%emt 0:01:04]} 33. Rxd5 {[%emt 0:00:02]} Ke6 {[%emt 0:00:00]} 34. Rd2 {[%emt 0:02:00] Weighted Error Value: White=0.21 (precise) /Black=0.22 (precise)} 1/2-1/2

[Event "Germany Countries-chT Youth 2022"]
[Site "Wiesbaden"]
[Date "2022.10.02"]
[Round "4"]
[White "Nizamova, Rita"]
[Black "Skembris, Simon Max"]
[Result "0-1"]
[ECO "C26"]
[WhiteElo "1813"]
[BlackElo "1540"]
[Annotator "NA RC COMBH"]
[PlyCount "84"]
[EventDate "2022.09.28"]
[EventType "team-tourn"]
[EventRounds "7"]
[EventCountry "GER"]
[SourceTitle "playchess.com"]
[Source "ChessBase"]
[SourceQuality "1"]
[TimeControl "40/5400+30:1800+30"]

1. e4 {[%emt 0:00:30]} e5 {[%emt 0:00:04]} 2. Nc3 {[%emt 0:00:00]} Nf6 {[%emt 0:00:15]} 3. g3 {[%emt 0:00:00]} d5 {[%emt 0:00:09]} 4. exd5 {[%emt 0:00:00]} Nxd5 {[%emt 0:00:07]} 5. Bg2 {[%emt 0:00:00]} Nxc3 {[%emt 0:00:16]} 6. bxc3 {[%emt 0:00:00]} Nc6 {[%emt 0:00:08]} 7. Nf3 {[%emt 0:00:00]} Bc5 {[%emt 0:00:19]} 8. O-O {[%emt 0:00:13]} O-O {[%emt 0:00:10]} 9. d3 {[%emt 0:00:37]} Re8 {[%emt 0:01:20]} 10. Re1 {[%emt 0:00:16]} Bg4 {[%emt 0:01:52]} 11. h3 {[%emt 0:00:00]} Bh5 {[%emt 0:00:39]} 12. g4 {[%emt 0:00:02]} Bg6 {[%emt 0:00:35]} 13. Be3 {[%emt 0:00:01]} Bb6 {[%emt 0:02:10]} 14. Rb1 {[%emt 0:00:39]} Qd7 {[%emt 0:05:48]} 15. Nd2 {[%emt 0:01:18]} Rad8 {[%emt 0:02:15]} 16. Nc4 {[%emt 0:00:34]} f6 {[%emt 0:02:36]} 17. Nxb6 {[%emt 0:03:12]} axb6 {[%emt 0:00:10]} 18. f4 {[%emt 0:01:39]} Bf7 {[%emt 0:02:36]} 19. c4 {[%emt 0:02:08]} (19. fxe5 $15 Nxe5 20. Rb4) 19... exf4 {[%emt 0:00:23]} 20. Bd2 {[%emt 0:01:16]} Qd4+ {[%emt 0:03:02]} 21. Kh1 {[%emt 0:03:13]} Rxe1+ {[%emt 0:00:42]} 22. Qxe1 {[%emt 0:00:02]} Re8 {[%emt 0:05:13]} 23. Be4 {[%emt 0:00:55]} g5 {[%emt 0:07:20]} 24. Bc3 {[%emt 0:00:44]} Qd6 {[%emt 0:00:52]} 25. Qf2 {[%emt 0:01:24] [#]} (25. h4 $142) 25... Bxc4 $1 {[%emt 0:05:40]} 26. Bxc6 {[%emt 0:01:27]} (26. Qg2 $142 Bxa2 27. Re1) 26... Qxc6+ {[%emt 0:00:10]} 27. Kg1 {[%emt 0:00:12]} (27. Kh2 $142 Bxd3 28. Re1 Rxe1 29. Bxe1) 27... Bxa2 {[%emt 0:02:56]} 28. Re1 {[%emt 0:01:36]} Kf7 {[%emt 0:08:23]} 29. Rxe8 {[%emt 0:01:21]} Qxe8 {[%emt 0:00:39]} 30. Qd4 {[%emt 0:00:34]} Qe6 {[%emt 0:00:49]} 31. Qe4 {[%emt 0:11:00]} Qxe4 {[%emt 0:01:39]} 32. dxe4 {[%emt 0:00:00]} Bb1 {[%emt 0:01:53]} 33. e5 $19 {[%emt 0:00:02]} Bxc2 {[%emt 0:00:35]} 34. exf6 {[%emt 0:00:01]} c5 {[%emt 0:00:44]} 35. Be5 {[%emt 0:04:29]} b5 {[%emt 0:05:31]} 36. Kf1 {[%emt 0:04:39]} b4 {[%emt 0:01:26]} 37. Ke1 {[%emt 0:00:02]} Be4 {[%emt 0:02:16]} 38. Kd2 {[%emt 0:01:59]} c4 {[%emt 0:02:04]} 39. h4 {[%emt 0:07:13]} gxh4 {[%emt 0:01:16]} 40. Bxf4 {[%emt 0:00:07]} c3+ {[%emt 0:00:41]} 41. Ke3 b3 {[%emt 0:30:20]} 42. Kxe4 {[%emt 0:30:22]} b2 {[%emt 0:00:05]} 0-1

[Event "Germany Countries-chT Youth 2022"]
[Site "Wiesbaden"]
[Date "2022.10.02"]
[Round "4"]
[White "Buchholz, Maja"]
[Black "Vranckx, Oscar"]
[Result "0-1"]
[ECO "A37"]
[WhiteElo "1765"]
[BlackElo "1583"]
[Annotator "NA RC COMBH"]
[PlyCount "88"]
[EventDate "2022.09.28"]
[EventType "team-tourn"]
[EventRounds "7"]
[EventCountry "GER"]
[SourceTitle "playchess.com"]
[Source "ChessBase"]
[SourceQuality "1"]
[TimeControl "40/5400+30:1800+30"]

1. c4 {[%emt 0:00:30]} c5 {[%emt 0:00:30]} 2. g3 {[%emt 0:00:30]} Nc6 {[%emt 0:00:30]} 3. Bg2 {[%emt 0:00:30]} g6 {[%emt 0:00:30]} 4. Nc3 {[%emt 0:00:30]} Bg7 {[%emt 0:00:00]} 5. Nf3 {[%emt 0:00:00]} e5 {[%emt 0:00:00]} 6. O-O {[%emt 0:00:00]} Nge7 {[%emt 0:00:00]} 7. Ne1 {[%emt 0:00:00]} d6 {[%emt 0:00:00]} 8. Nc2 {[%emt 0:00:00]} Be6 {[%emt 0:00:00]} 9. Ne3 {[%emt 0:00:00]} O-O {[%emt 0:00:00]} 10. a3 {[%emt 0:01:27]} Rb8 {[%emt 0:00:00]} 11. Ned5 {[%emt 0:02:13]} f5 {[%emt 0:00:13]} 12. Rb1 {[%emt 0:01:53]} a5 {[%emt 0:00:17]} 13. d3 {[%emt 0:00:47]} h6 {[%emt 0:01:45]} 14. Bd2 {[%emt 0:05:36]} Nd4 {[%emt 0:01:32]} 15. b4 {[%emt 0:06:08]} axb4 {[%emt 0:05:14]} 16. axb4 {[%emt 0:00:08]} g5 {[%emt 0:08:40]} 17. e3 {[%emt 0:13:22]} Ndc6 {[%emt 0:00:10]} 18. b5 {[%emt 0:02:46]} Na5 {[%emt 0:01:15]} 19. Qe1 {[%emt 0:03:12]} b6 {[%emt 0:01:07]} 20. Nxe7+ {[%emt 0:01:11]} Qxe7 {[%emt 0:00:54]} 21. Nd5 {[%emt 0:00:13]} Qd8 {[%emt 0:00:20]} 22. Nxb6 {[%emt 0:00:41]} Qxb6 {[%emt 0:02:06]} 23. Bxa5 {[%emt 0:00:06]} Qa7 {[%emt 0:00:05]} 24. Bc3 {[%emt 0:10:53]} Qf7 {[%emt 0:00:57]} 25. f3 {[%emt 0:10:00]} Qg6 {[%emt 0:03:39]} 26. Qd2 {[%emt 0:08:09]} d5 {[%emt 0:01:15]} 27. cxd5 {[%emt 0:01:06]} Bxd5 {[%emt 0:00:08]} 28. f4 {[%emt 0:01:55]} Bxg2 {[%emt 0:01:37]} 29. Kxg2 {[%emt 0:01:53]} exf4 {[%emt 0:00:28]} 30. exf4 {[%emt 0:01:32]} Rxb5 {[%emt 0:01:32]} 31. Qa2+ {[%emt 0:06:32]} Kh7 {[%emt 0:01:09]} 32. Bxg7 {[%emt 0:07:07]} Kxg7 {[%emt 0:00:32]} 33. Qa1+ {[%emt 0:02:33]} Kh7 {[%emt 0:00:21]} 34. fxg5 {[%emt 0:01:31]} hxg5 {[%emt 0:00:24]} 35. Qe5 {[%emt 0:01:00]} Rxb1 {[%emt 0:01:39]} 36. Rxb1 {[%emt 0:00:30]} Qc6+ {[%emt 0:00:16]} 37. Kg1 {[%emt 0:00:10]} Rf7 {[%emt 0:00:39]} 38. Rb8 {[%emt 0:00:45]} Qf6 {[%emt 0:00:50]} 39. Qxc5 {[%emt 0:00:51]} f4 {[%emt 0:00:05]} 40. Rb6 {[%emt 0:05:43]} Qa1+ {[%emt 0:00:32]} 41. Kf2 {[%emt 0:30:39]} fxg3+ {[%emt 0:30:08]} 42. Kxg3 {[%emt 0:00:27]} Qe1+ {[%emt 0:00:07]} 43. Kg2 {[%emt 0:02:00]} Qf1+ {[%emt 0:00:24]} 44. Kg3 {[%emt 0:00:06]} Qf3# 0-1

[Event "Germany Countries-chT Youth 2022"]
[Site "Wiesbaden"]
[Date "2022.10.02"]
[Round "4"]
[White "Pohle, Saskia"]
[Black "Goepfert, Gregor"]
[Result "1/2-1/2"]
[ECO "C42"]
[WhiteElo "1756"]
[BlackElo "1480"]
[Annotator "NA RC COMBH"]
[PlyCount "68"]
[EventDate "2022.09.28"]
[EventType "team-tourn"]
[EventRounds "7"]
[EventCountry "GER"]
[SourceTitle "playchess.com"]
[Source "ChessBase"]
[SourceQuality "1"]
[TimeControl "40/5400+30:1800+30"]

1. e4 {[%emt 0:00:01]} e5 {[%emt 0:00:10]} 2. Nf3 {[%emt 0:00:05]} Nf6 {[%emt 0:00:06]} 3. Nxe5 {[%emt 0:00:20]} d6 {[%emt 0:00:41]} 4. Nf3 {[%emt 0:00:10]} Nxe4 {[%emt 0:00:10]} 5. d4 {[%emt 0:00:11]} d5 {[%emt 0:00:05]} 6. Bd3 {[%emt 0:02:30]} Nc6 {[%emt 0:00:17]} 7. O-O {[%emt 0:00:53]} Be7 {[%emt 0:00:07]} 8. Re1 {[%emt 0:02:58]} Bg4 {[%emt 0:00:49]} 9. c3 {[%emt 0:04:04]} f5 {[%emt 0:01:07]} 10. Nbd2 {[%emt 0:03:55]} O-O {[%emt 0:01:25]} 11. Qc2 {[%emt 0:04:01]} Qd7 {[%emt 0:10:02]} 12. Bb5 {[%emt 0:07:13]} Bf6 {[%emt 0:07:50]} 13. Ne5 {[%emt 0:16:58]} Bxe5 {[%emt 0:02:28]} 14. dxe5 {[%emt 0:00:12]} Qe7 {[%emt 0:05:42]} 15. Bxc6 {[%emt 0:05:17]} bxc6 {[%emt 0:00:15]} 16. Nb3 {[%emt 0:00:53]} Nc5 {[%emt 0:20:45]} 17. Nd4 {[%emt 0:03:37]} Ne6 {[%emt 0:08:32]} 18. Nxc6 {[%emt 0:04:27]} Qc5 {[%emt 0:00:31]} 19. Qa4 {[%emt 0:01:28]} f4 {[%emt 0:02:21]} 20. Nd4 {[%emt 0:07:04]} Rab8 {[%emt 0:02:35]} 21. h3 {[%emt 0:03:03]} Bf5 {[%emt 0:01:41]} 22. Rd1 {[%emt 0:11:35]} h6 {[%emt 0:12:21]} 23. Qc6 {[%emt 0:01:30]} Qe7 {[%emt 0:02:43]} 24. Nxf5 {[%emt 0:01:52]} Rxf5 {[%emt 0:00:22]} 25. Rxd5 {[%emt 0:01:07]} Rb6 {[%emt 0:02:33]} 26. Qc4 {[%emt 0:04:41]} Qh4 {[%emt 0:03:07]} 27. Qd3 {[%emt 0:05:50]} Qh5 {[%emt 0:01:55]} 28. Qf3 {[%emt 0:01:15]} Qg6 {[%emt 0:00:53]} 29. h4 {[%emt 0:02:35]} Rh5 {[%emt 0:03:00]} 30. Bxf4 {[%emt 0:00:13]} Rf5 {[%emt 0:00:33]} 31. h5 {[%emt 0:01:48]} Qf7 {[%emt 0:00:20]} 32. g3 {[%emt 0:00:17]} Rxb2 {[%emt 0:04:24]} 33. Qe3 {[%emt 0:02:35]} Qxh5 {[%emt 0:00:48]} 34. Rd2 {[%emt 0:02:10]} Rb6 {[%emt 0:04:08]} 1/2-1/2

[Event "Germany Countries-chT Youth 2022"]
[Site "Wiesbaden"]
[Date "2022.10.02"]
[Round "4"]
[White "Prinzen, Siri Marleen"]
[Black "Trunz, Michelle"]
[Result "1/2-1/2"]
[ECO "A80"]
[WhiteElo "1719"]
[BlackElo "1821"]
[Annotator "NA RC COMBH"]
[PlyCount "136"]
[EventDate "2022.09.28"]
[EventType "team-tourn"]
[EventRounds "7"]
[EventCountry "GER"]
[SourceTitle "playchess.com"]
[Source "ChessBase"]
[SourceQuality "1"]
[TimeControl "40/5400+30:1800+30"]

{[%evp 15,136,-18,32767,32767,-31,-60,-24,-47,-4,0,32767,32767,44,32767,32767,80,32767,32767,32767,32767,32767,32767,54,32767,32767,32767,32767,32767,32767,32767,32767,32767,32767,32767,41,32767,32767,32767,-10,-80,32767,32767,32767,32767,32767,32767,32767,32767,32767,32767,32767,32767,32767,32767,32767,32767,32767,32767,32767,32767,-220,32767,32767,32767,32767,32767,-218,32767,-151,-180,32767,-193,-164,-184,-189,-190,-141,-268,-265,-266,-238,32767,-329,-285,-224,-205,-210,-183,-188,-205,-215,-188,-210,32767,32767,-275,-264,32767,-305,-514,-354,-373,-384,-440,-389,-449,-228,-225,-217,-275,0,-230,-220,-249,-8,-8,0,-202,-247,-220,0,-263,0]} 1. d4 {[%emt 0:00:02]} f5 {[%emt 0:00:04]} 2. h3 {[%emt 0:00:11]} Nf6 {[%emt 0:00:47]} 3. g4 {[%emt 0:00:24]} d5 {[%emt 0:01:27]} 4. Nc3 {[%emt 0:01:12]} fxg4 {[%emt 0:01:40]} 5. Bf4 {[%emt 0:00:29]} c5 {[%emt 0:06:14]} 6. e3 {[%emt 0:03:44]} Nc6 {[%emt 0:01:05]} 7. Nb5 {[%emt 0:05:10]} Kf7 {[%emt 0:11:35]} 8. Nc3 {[%emt 0:17:09]} (8. Nc7 $5 {[%cal Rc7a8]} cxd4 9. exd4 $11 (9. Nxa8 $2 {is the wrong capture.} e5 $19)) 8... Bf5 {[%emt 0:06:37]} 9. hxg4 {[%emt 0:04:51]} Bxg4 {[%emt 0:00:15]} 10. f3 {[%emt 0:00:59]} Bf5 {[%emt 0:04:57]} 11. Bd3 {[%emt 0:08:21]} Bxd3 {[%emt 0:00:23]} 12. Qxd3 {[%emt 0:00:15]} cxd4 {[%emt 0:03:10]} 13. exd4 {[%emt 0:00:39]} Qb6 {[%emt 0:02:54]} 14. O-O-O {[%emt 0:03:14]} Nb4 {[%emt 0:02:33]} 15. Qe3 {[%emt 0:01:37]} ({Much weaker is} 15. Qf5 $6 e6 16. Qh3 Rc8 $15) 15... Qe6 {[%emt 0:07:05]} 16. Qxe6+ {[%emt 0:06:22]} Kxe6 {[%emt 0:00:06]} 17. Nh3 {[%emt 0:00:57]} Kd7 {[%emt 0:01:03]} 18. Ng5 {[%emt 0:01:05]} g6 {[%emt 0:02:31]} (18... Nc6 $11 {was preferrable.}) 19. Be5 {[%emt 0:02:34]} h6 {[%emt 0:02:41]} 20. Nh3 {[%emt 0:03:25]} Bg7 {[%emt 0:03:36]} 21. a3 {[%emt 0:00:53]} Nc6 {[%emt 0:00:16]} 22. Nxd5 {[%emt 0:01:17]} Rhg8 {[%emt 0:04:01]} 23. Bxf6 {[%emt 0:02:01]} Bxf6 {[%emt 0:02:37]} 24. Nxf6+ {[%emt 0:00:20]} exf6 {[%emt 0:00:04]} 25. Nf4 {[%emt 0:00:26]} h5 {[%emt 0:01:51]} 26. Rhg1 {[%emt 0:01:14]} Ne7 $1 {[%emt 0:00:43]} 27. Rg2 {[%emt 0:01:07]} (27. d5 $11) 27... h4 {[%emt 0:01:01]} 28. Nd3 {[%emt 0:03:02]} b6 {[%emt 0:01:47]} 29. Rh2 {[%emt 0:04:15]} Nf5 {[%emt 0:03:50]} 30. Nf4 {[%emt 0:01:28]} Rae8 {[%emt 0:05:16]} 31. Nd5 {[%emt 0:02:45]} Re6 {[%emt 0:01:37]} 32. Nf4 {[%emt 0:05:58]} Rd6 {[%emt 0:02:09]} 33. c3 {[%emt 0:00:56]} g5 {[%emt 0:00:57]} 34. Ng2 {[%emt 0:02:24]} Re6 {[%emt 0:02:12]} 35. Rd2 {[%emt 0:04:15]} Rge8 {[%emt 0:01:51]} 36. f4 {[%emt 0:02:22]} Ng3 {[%emt 0:04:10]} 37. Rh3 {[%emt 0:03:20]} Re2 {[%emt 0:00:37]} (37... Ne2+ $142 38. Kd1 Ng1) 38. Rxe2 {[%emt 0:00:46]} Rxe2 {[%emt 0:00:24]} 39. Nxh4 {[%emt 0:00:10]} gxh4 {[%emt 0:00:23]} 40. Rxh4 {[%emt 0:00:07]} f5 {[%emt 0:08:01]} 41. Rh3 {[%emt 0:32:45]} Re3 {[%emt 0:31:56]} 42. Kd1 {[%emt 0:02:31]} b5 {[%emt 0:00:00]} 43. Rh7+ {[%emt 0:00:00]} Re7 {[%emt 0:00:00]} 44. Rh6 {[%emt 0:00:00]} Kc7 {[%emt 0:00:00]} 45. Rg6 {[%emt 0:00:00]} Ne4 {[%emt 0:00:00]} ({Black should try} 45... Nf1 $19 46. a4 Ne3+ 47. Kc1 bxa4) 46. Rh6 {[%emt 0:00:00]} (46. a4 $17) 46... Nd6 {[%emt 0:00:00]} 47. b3 {[%emt 0:00:00]} Re3 {[%emt 0:00:00]} 48. Kd2 {[%emt 0:00:00]} Rf3 {[%emt 0:00:00]} 49. Rh7+ {[%emt 0:00:00]} Kb6 {[%emt 0:00:00]} 50. Rh6 {[%emt 0:00:00] [#]} Kc6 $1 {[%emt 0:00:00]} 51. c4 {[%emt 0:00:00]} bxc4 {[%emt 0:00:00]} ({And not} 51... Rxf4 52. d5+ Kd7 53. c5 $15) 52. bxc4 {[%emt 0:00:00]} Rxf4 {[%emt 0:00:00]} 53. Ke3 {[%emt 0:00:00]} Re4+ {[%emt 0:00:00]} 54. Kd3 {[%emt 0:00:00]} Kd7 {[%emt 0:00:00]} 55. a4 {[%emt 0:00:00]} Re6 {[%emt 0:00:00]} 56. Rh7+ {[%emt 0:00:00]} Re7 {[%emt 0:00:00]} 57. Rh6 {[%emt 0:00:00]} (57. Rh4 $142) 57... Rg7 {[%emt 0:00:00]} 58. Kc3 {[%emt 0:00:00]} a5 {[%emt 0:00:00]} 59. c5 {[%emt 0:00:00]} Rg3+ {[%emt 0:00:00]} 60. Kc2 {[%emt 0:00:00]} Nc4 $2 {[%emt 0:00:00]} (60... Ne4 61. Rh5 Kc6 62. Rxf5 Rc3+ 63. Kd1 Rd3+ 64. Kc2 Rxd4) 61. d5 {[%emt 0:00:00]} {Not} Ne3+ $2 {[%emt 0:00:00]} 62. Kd2 $19 {[%emt 0:00:00] [#]} Nc4+ $2 {[%emt 0:00:00]} ({Not} 62... Nxd5 63. Rd6+ Kc7 64. Rxd5 $11) (62... f4 $1 $19 63. Rh7+ Ke8) 63. Kc2 $1 {[%emt 0:00:00]} f4 {[%emt 0:00:24]} 64. Rh7+ {[%emt 0:00:00]} Kd8 {[%emt 0:00:54]} 65. Rh8+ $1 {[%emt 0:00:00]} Kd7 $11 {[%emt 0:02:16]} (65... Ke7 $5 66. d6+ $8 Ke6 67. Rh6+ Kd7 68. Rh7+ Ke6 69. Rh6+ Kf7 70. Rh7+ Ke6 71. Rh6+ $11) 66. Rh7+ $1 {[%emt 0:00:00] [#]} Ke8 $1 {[%emt 0:00:23]} 67. d6 {[%emt 0:01:15]} Ne3+ $2 {[%emt 0:04:05]} (67... f3 $19 68. Re7+ Kf8) 68. Kd2 $2 {[%emt 0:00:38]} (68. Kd3 $11) 68... Nc4+ $2 {[%emt 0:01:45]} (68... Nf5 $19 69. Rh5 Nd4) 1/2-1/2

[Event "Germany Countries-chT Youth 2022"]
[Site "Wiesbaden"]
[Date "2022.10.02"]
[Round "4"]
[White "Braun, Julian"]
[Black "Mueller, Sophie Charlotte"]
[Result "1-0"]
[ECO "B01"]
[WhiteElo "1715"]
[BlackElo "1435"]
[Annotator "NA RC COMBH"]
[PlyCount "49"]
[EventDate "2022.09.28"]
[EventType "team-tourn"]
[EventRounds "7"]
[EventCountry "GER"]
[SourceTitle "playchess.com"]
[Source "ChessBase"]
[SourceQuality "1"]
[TimeControl "40/5400+30:1800+30"]

1. e4 {[%emt 0:00:01]} d5 {[%emt 0:00:06]} 2. exd5 {[%emt 0:00:04]} Qxd5 {[%emt 0:00:05]} 3. Nc3 {[%emt 0:00:01]} Qa5 {[%emt 0:00:07]} 4. d4 {[%emt 0:00:08]} c6 {[%emt 0:00:14]} 5. Nf3 {[%emt 0:00:04]} Nf6 {[%emt 0:00:15]} 6. Bc4 {[%emt 0:00:10]} Bf5 {[%emt 0:01:56]} 7. O-O {[%emt 0:00:18]} e6 {[%emt 0:00:49]} 8. Re1 {[%emt 0:00:37]} Bd6 {[%emt 0:00:32]} 9. Ne5 {[%emt 0:05:28]} O-O {[%emt 0:04:23]} 10. Bf4 {[%emt 0:01:32]} Bb4 {[%emt 0:05:12]} 11. Rb1 {[%emt 0:11:54]} Nd5 {[%emt 0:14:22]} 12. Bd2 {[%emt 0:09:21]} Nxc3 {[%emt 0:05:07]} 13. bxc3 {[%emt 0:00:27]} Bxc3 {[%emt 0:00:12]} 14. Bxc3 {[%emt 0:01:14]} Qxc3 {[%emt 0:00:03]} 15. Rxb7 {[%emt 0:01:39]} Qxc2 {[%emt 0:11:44]} 16. Qxc2 {[%emt 0:02:12]} Bxc2 {[%emt 0:00:03]} 17. Nxf7 {[%emt 0:02:34]} Bf5 {[%emt 0:05:06]} 18. Nd6 {[%emt 0:01:48]} Kh8 {[%emt 0:01:33]} 19. Nxf5 {[%emt 0:01:14]} Rxf5 {[%emt 0:08:17]} 20. Rxe6 {[%emt 0:01:11]} Nd7 {[%emt 0:01:03]} 21. Rxd7 {[%emt 0:00:19]} Rb8 {[%emt 0:00:34]} 22. g3 {[%emt 0:01:19]} Rbf8 {[%emt 0:00:48]} 23. Ree7 {[%emt 0:00:44]} Rg5 {[%emt 0:01:07]} 24. h4 {[%emt 0:00:41]} Rg4 {[%emt 0:00:15]} 25. Be6 {[%emt 0:00:50]} 1-0